bitfinex/quotes_BTCUSD_20241117
["timestamp","ask_amount","ask_price","bid_price","bid_amount"]
[1731852024503,0.110476,90517.0,90510.0,0.110484]
[1731852024712,0.0453287,90531.0,90509.0,0.00273955]
[1731852024931,0.11047,90522.0,90516.0,0.110476]
[1731852025206,0.38642346,90523.0,90512.0,0.220965]
[1731852025384,0.110467,90525.0,90518.0,0.110474]
[1731852025604,0.11047,90522.0,90515.0,0.110478]
[1731852025824,0.11047,90522.0,90519.0,0.00274846]
[1731852026058,0.110471,90521.0,90519.0,0.00274846]
[1731852026283,0.0453287,90531.0,90506.0,0.0792]
[1731852026284,0.110469,90523.0,90520.0,0.00274133]
[1731852026513,0.110471,90521.0,90514.0,0.110479]
[1731852026732,0.110471,90521.0,90515.0,0.110478]
[1731852028038,0.0453287,90531.0,90507.0,0.220976]
[1731852028246,0.110477,90517.0,90507.0,0.220976]
[1731852028474,0.110474,90519.0,90513.0,0.11048]
[1731852028678,0.110474,90519.0,90508.0,0.220974]
[1731852028908,0.0017124,90521.0,90508.0,0.0022095]
[1731852029119,0.0017124,90521.0,90518.0,0.110474]
[1731852029582,0.0017124,90521.0,90516.0,0.220954]
[1731852029800,0.0017124,90521.0,90511.0,0.16548346]
[1731852030008,0.0017124,90521.0,90520.0,0.110472]
[1731852030229,0.0017124,90521.0,90520.0,0.11268116]
[1731852030746,0.0017124,90521.0,90520.0,0.22174371]
[1731852031609,0.0017124,90521.0,90520.0,0.26745868]
[1731852031815,0.0017124,90521.0,90520.0,0.27291214]
[1731852032035,0.0017124,90521.0,90520.0,0.27491214]
[1731852032465,0.0017124,90521.0,90520.0,0.44691214]
[1731852033574,0.0017124,90521.0,90520.0,0.44891214]
[1731852033789,0.0017124,90521.0,90520.0,0.44691214]
[1731852034035,0.0017124,90521.0,90520.0,0.32921108]
[1731852034245,0.0017124,90521.0,90520.0,0.43968308]
[1731852035349,0.0017124,90521.0,90520.0,0.44168308]
[1731852036011,0.0017124,90521.0,90520.0,0.43968308]
[1731852036230,0.0017124,90521.0,90520.0,0.44168308]
[1731852037285,0.0017124,90521.0,90520.0,0.51678308]
[1731852037961,0.0008566,90540.0,90539.0,0.005]
[1731852038191,0.0008566,90540.0,90539.0,0.33151155]
[1731852038654,0.0008566,90540.0,90539.0,0.33409823]
[1731852038976,0.09191026,90554.0,90553.0,0.110432]
[1731852039277,0.0608566,90555.0,90554.0,0.110431]
[1731852039480,0.0608566,90555.0,90554.0,0.21949355]
[1731852039907,0.0608566,90555.0,90554.0,0.22208022]
[1731852040386,0.0608566,90555.0,90554.0,0.35178022]
[1731852040629,0.0608566,90555.0,90554.0,0.45178022]
[1731852040855,0.0608566,90555.0,90554.0,0.47478022]
[1731852041079,0.0608566,90555.0,90554.0,0.47978022]
[1731852041309,0.0608566,90555.0,90554.0,0.52527544]
[1731852042419,0.0608566,90555.0,90554.0,0.55227592]
[1731852042649,0.0608566,90555.0,90554.0,0.5844331]
[1731852042865,0.0608566,90555.0,90554.0,0.52727544]
[1731852043293,0.0608566,90555.0,90554.0,0.52527544]
[1731852043521,0.0608566,90555.0,90554.0,0.52027544]
[1731852043728,0.0608566,90555.0,90554.0,0.37257544]
[1731852043939,0.0608566,90555.0,90554.0,0.37757544]
[1731852044350,0.0608566,90555.0,90554.0,0.37257544]
[1731852044564,0.0608566,90555.0,90554.0,0.37757544]
[1731852044766,0.0608566,90555.0,90554.0,0.37257544]
[1731852045212,0.0608566,90555.0,90554.0,0.37757544]
[1731852045438,0.0608566,90555.0,90554.0,0.37257544]
[1731852045673,0.0608566,90555.0,90554.0,0.25851289]
[1731852045974,0.0608566,90555.0,90554.0,0.21301767]
[1731852048303,0.0608566,90555.0,90554.0,0.25768356]
[1731852048575,0.1364566,90555.0,90554.0,0.00258667]
[1731852049017,0.1364566,90555.0,90550.0,0.110435]
[1731852049263,0.1364566,90555.0,90554.0,0.00253197]
[1731852049454,0.1364566,90555.0,90548.0,0.1]
[1731852049667,0.110433,90552.0,90551.0,0.00253731]
[1731852049869,0.220865,90553.0,90537.0,0.220904]
[1731852050075,0.110443,90545.0,90537.0,0.110451]
[1731852050282,0.220862,90554.0,90536.0,0.110452]
[1731852050497,0.16548346,90549.0,90532.0,0.005]
[1731852050719,0.110438,90548.0,90527.0,0.110463]
[1731852050953,0.220877,90548.0,90531.0,0.110458]
[1731852051176,0.220894,90541.0,90527.0,0.220928]
[1731852051623,0.110453,90536.0,90529.0,0.110461]
[1731852051847,0.220877,90548.0,90517.0,0.38643446]
[1731852052082,0.110456,90534.0,90520.0,0.220945]
[1731852052307,0.10906255,90547.0,90527.0,0.110463]
[1731852052308,0.110455,90535.0,90527.0,0.110463]
[1731852052520,0.110456,90534.0,90526.0,0.110465]
[1731852052739,0.110457,90533.0,90526.0,0.110465]
[1731852053429,0.110457,90533.0,90527.0,0.110464]
[1731852053903,0.0016,90535.0,90528.0,0.110462]
[1731852054118,0.110457,90533.0,90526.0,0.110465]
[1731852054335,0.110456,90534.0,90519.0,0.08544204]
[1731852054551,0.110456,90534.0,90522.0,0.22094]
[1731852054770,0.110456,90534.0,90527.0,0.110463]
[1731852055048,0.110457,90533.0,90527.0,0.110463]
[1731852055950,0.112055,90535.0,90528.0,0.110461]
[1731852056189,0.002,90564.0,90526.0,0.220931]
[1731852056190,0.046,90551.0,90526.0,0.220931]
[1731852056404,0.11044,90547.0,90541.0,0.110446]
[1731852056634,0.38635846,90549.0,90541.0,0.110446]
[1731852056867,0.38635846,90549.0,90536.0,0.220906]
[1731852057095,0.0017122,90553.0,90548.0,0.110438]
[1731852057326,0.110433,90552.0,90546.0,0.11044]
[1731852057569,0.0017122,90553.0,90546.0,0.11044]
[1731852057570,0.110435,90551.0,90546.0,0.11044]
[1731852057785,0.2225772,90553.0,90541.0,0.110446]
[1731852058013,0.110439,90547.0,90533.0,0.220913]
[1731852058238,0.110439,90547.0,90538.0,0.16548346]
[1731852058469,0.2225772,90553.0,90545.0,0.110441]
[1731852058690,0.220867,90552.0,90545.0,0.110441]
[1731852058918,0.0017122,90553.0,90531.0,0.0500026]
[1731852059133,0.110441,90546.0,90537.0,0.220903]
[1731852059351,0.110441,90546.0,90540.0,0.110447]
[1731852059569,0.110441,90546.0,90531.0,0.1500026]
[1731852059791,0.110445,90543.0,90538.0,0.11045]
[1731852060007,0.110443,90545.0,90539.0,0.110449]
[1731852060221,0.1246,90548.0,90525.0,0.220932]
[1731852060445,0.1246,90548.0,90518.0,0.0755]
[1731852060446,0.220882,90546.0,90529.0,0.16548346]
[1731852060932,0.10906255,90547.0,90529.0,0.16548346]
[1731852061151,0.110461,90530.0,90524.0,0.110467]
[1731852061415,0.11046,90530.0,90527.0,0.16548346]
[1731852061639,0.11046,90530.0,90525.0,0.110466]
[1731852061892,0.11046,90530.0,90528.0,0.0026247]
[1731852062103,0.0786,90532.0,90519.0,0.260947]
[1731852062330,0.11046,90530.0,90529.0,0.00262292]
[1731852062543,0.110463,90528.0,90522.0,0.110469]
[1731852062731,0.110463,90528.0,90523.0,0.110468]
[1731852062991,0.110463,90528.0,90523.0,0.11309804]
[1731852063226,0.299518,90532.0,90523.0,0.00263004]
[1731852063453,0.110459,90531.0,90523.0,0.00263004]
[1731852063682,0.21488346,90531.0,90519.0,0.04]
[1731852063916,0.110472,90520.0,90519.0,0.04]
[1731852064364,0.11047,90522.0,90519.0,0.04]
[1731852064583,0.24678346,90539.0,90519.0,0.04]
[1731852064818,0.27594646,90528.0,90527.0,0.0008563]
[1731852065040,0.110463,90528.0,90527.0,0.0008563]
[1731852065756,0.21952555,90528.0,90527.0,0.0008563]
[1731852066185,0.30082555,90528.0,90527.0,0.0008563]
[1731852066852,0.45022555,90528.0,90527.0,0.0008563]
[1731852067301,0.35022555,90528.0,90527.0,0.0008563]
[1731852067522,0.241163,90528.0,90527.0,0.0008563]
[1731852067749,0.220919,90531.0,90527.0,0.0008563]
[1731852067750,0.331377,90531.0,90527.0,0.0008563]
[1731852067963,0.110463,90528.0,90527.0,0.0008563]
[1731852068178,0.21952555,90528.0,90527.0,0.0008563]
[1731852068406,0.110463,90528.0,90527.0,0.0008563]
[1731852068647,0.220918,90531.0,90527.0,0.0008563]
[1731852069156,0.110461,90530.0,90527.0,0.0008563]
[1731852069349,0.220918,90531.0,90527.0,0.0008563]
[1731852069680,0.110463,90528.0,90527.0,0.0008563]
[1731852070055,0.3908426,90532.0,90527.0,0.0008563]
[1731852070321,0.110462,90529.0,90527.0,0.0008563]
[1731852070546,0.110463,90528.0,90527.0,0.0008563]
[1731852071462,0.3908426,90532.0,90527.0,0.0008563]
[1731852071706,0.0813,90543.0,90527.0,0.0008563]
[1731852071921,0.0494,90548.0,90527.0,0.0008563]
[1731852071922,0.16548346,90537.0,90527.0,0.0008563]
[1731852072176,0.0494,90548.0,90527.0,0.0008563]
[1731852072177,0.220879,90547.0,90528.0,0.00267858]
[1731852072377,0.0494,90548.0,90528.0,0.00267858]
[1731852072378,0.16548346,90536.0,90528.0,0.00267858]
[1731852072608,0.110461,90529.0,90528.0,0.00267858]
[1731852072897,0.220911,90534.0,90513.0,0.06073549]
[1731852073083,0.110468,90524.0,90519.0,0.16548346]
[1731852073312,0.220911,90534.0,90513.0,0.06073549]
[1731852073313,0.110462,90529.0,90513.0,0.06073549]
[1731852073519,0.10906255,90539.0,90513.0,0.06073549]
[1731852073520,0.16548346,90531.0,90515.0,0.005]
[1731852073725,0.16548346,90531.0,90516.0,0.10906255]
[1731852074207,0.16548346,90531.0,90517.0,0.0493]
[1731852074427,0.16548346,90531.0,90519.0,0.110473]
[1731852074644,0.16548346,90531.0,90520.0,0.00220912]
[1731852074855,0.0826122,90553.0,90523.0,0.005]
[1731852075061,0.16548346,90536.0,90532.0,0.005]
[1731852075283,0.0017122,90553.0,90538.0,0.11045]
[1731852075748,0.0017122,90553.0,90535.0,0.220909]
[1731852075956,0.0017122,90553.0,90534.0,0.0493]
[1731852075957,0.0017122,90553.0,90536.0,0.08]
[1731852076213,0.0017122,90553.0,90537.0,0.220904]
[1731852076478,0.0017122,90553.0,90540.0,0.110448]
[1731852076603,0.0017122,90553.0,90540.0,0.110447]
[1731852076897,0.0017122,90553.0,90536.0,0.08]
[1731852076898,0.0017122,90553.0,90541.0,0.00262608]
[1731852077122,0.0017122,90553.0,90552.0,0.110433]
[1731852077578,0.0017122,90553.0,90552.0,0.11301581]
[1731852077790,0.0017122,90553.0,90552.0,0.29522419]
[1731852078003,0.0017122,90553.0,90552.0,0.34231581]
[1731852078208,0.0017122,90553.0,90552.0,0.45637836]
[1731852079538,0.0017122,90553.0,90552.0,0.00258281]
[1731852079742,0.0017122,90553.0,90530.0,0.0493]
[1731852080224,0.0017122,90553.0,90539.0,0.16548346]
[1731852080235,0.0017122,90553.0,90540.0,0.220896]
[1731852080395,0.16548346,90551.0,90540.0,0.22347066]
[1731852080642,0.16548346,90551.0,90543.0,0.110444]
[1731852080855,0.16548346,90551.0,90540.0,0.22347066]
[1731852080856,0.16548346,90551.0,90540.0,0.00257466]
[1731852081066,0.0017122,90553.0,90541.0,0.00256932]
[1731852081276,0.110435,90551.0,90544.0,0.00256398]
[1731852081507,0.0017122,90553.0,90535.0,0.1]
[1731852081728,0.110438,90549.0,90545.0,0.0025622]
[1731852081942,0.110438,90549.0,90537.0,0.1]
[1731852082159,0.110436,90550.0,90546.0,0.00255686]
[1731852082369,0.110434,90552.0,90537.0,0.1]
[1731852082595,0.110435,90551.0,90537.0,0.1]
[1731852082826,0.110435,90551.0,90538.0,0.00257644]
[1731852083292,0.1121452,90553.0,90539.0,0.110449]
[1731852083523,0.0017122,90553.0,90538.0,0.00257644]
[1731852083739,0.0017122,90553.0,90537.0,0.1]
[1731852083740,0.0017122,90553.0,90545.0,0.110441]
[1731852083965,0.0951382,90558.0,90545.0,0.110441]
[1731852084149,0.0951382,90558.0,90546.0,0.00256487]
[1731852084448,0.0951382,90558.0,90545.0,0.110441]
[1731852084653,0.0470564,90567.0,90545.0,0.110441]
[1731852084859,0.220833,90566.0,90546.0,0.00257377]
[1731852085275,0.110426,90559.0,90547.0,0.110438]
[1731852085731,0.110428,90557.0,90548.0,0.110438]
[1731852085983,0.0470564,90567.0,90548.0,0.2234575]
[1731852086217,0.16548346,90562.0,90548.0,0.0025805]
[1731852086678,0.110425,90559.0,90545.0,0.220882]
[1731852086885,0.110422,90561.0,90550.0,0.220871]
[1731852087269,0.16548346,90562.0,90546.0,0.220882]
[1731852087270,0.27590546,90562.0,90551.0,0.22087]
[1731852087528,0.110423,90561.0,90554.0,0.11043]
[1731852087644,0.16548346,90562.0,90552.0,0.00257436]
[1731852087797,0.27590446,90562.0,90556.0,0.110428]
[1731852088031,0.110421,90562.0,90556.0,0.110428]
[1731852088245,0.110421,90562.0,90557.0,0.00256389]
[1731852088678,0.110421,90562.0,90549.0,0.110436]
[1731852089105,0.0008564,90567.0,90558.0,0.00256211]
[1731852089351,0.0008564,90567.0,90546.0,0.220882]
[1731852089352,0.110422,90562.0,90548.0,0.110438]
[1731852089595,0.0008567,90558.0,90548.0,0.110438]
[1731852089802,0.0008567,90558.0,90544.0,0.1]
[1731852090014,0.0008567,90558.0,90547.0,0.110439]
[1731852090246,0.0008567,90558.0,90544.0,0.1]
[1731852090467,0.110433,90553.0,90544.0,0.1]
[1731852090675,0.331286,90556.0,90544.0,0.1]
[1731852090891,0.220857,90556.0,90544.0,0.1]
[1731852091098,0.11043,90555.0,90544.0,0.1]
[1731852091555,0.11043,90555.0,90545.0,0.00256927]
[1731852091753,0.301769,90552.0,90545.0,0.00256927]
[1731852091977,0.11044,90547.0,90537.0,0.005]
[1731852092160,0.11044,90547.0,90538.0,0.16548346]
[1731852092436,0.110449,90539.0,90538.0,0.00256749]
[1731852092640,0.0809,90552.0,90538.0,0.00256749]
[1731852092862,0.110438,90548.0,90535.0,0.110453]
[1731852093084,0.110438,90548.0,90534.0,0.1]
[1731852093297,0.16548346,90549.0,90539.0,0.00257389]
[1731852093503,0.16548346,90549.0,90536.0,0.00220881]
[1731852093727,0.11044,90547.0,90540.0,0.00256677]
[1731852093951,0.11044,90547.0,90536.0,0.00220881]
[1731852094174,0.22087,90551.0,90531.0,0.00220878]
[1731852094356,0.110436,90550.0,90537.0,0.00256855]
[1731852094565,0.110436,90550.0,90534.0,0.1]
[1731852094787,0.110436,90550.0,90538.0,0.00257211]
[1731852095208,0.110436,90550.0,90534.0,0.210455]
[1731852095440,0.220855,90557.0,90539.0,0.00257033]
[1731852095663,0.22087,90551.0,90540.0,0.00220868]
[1731852095901,0.220862,90555.0,90540.0,0.00220868]
[1731852096114,0.24638346,90559.0,90534.0,0.005]
[1731852096322,0.24638346,90559.0,90533.0,0.1]
[1731852096323,0.38719516,90558.0,90542.0,0.0751]
[1731852096565,0.22086,90555.0,90542.0,0.0751]
[1731852096789,0.110434,90552.0,90543.0,0.00258378]
[1731852097235,0.220857,90556.0,90542.0,0.0751]
[1731852097513,0.110432,90553.0,90542.0,0.0751]
[1731852097681,0.110432,90553.0,90543.0,0.00258022]
[1731852098314,0.11043,90555.0,90543.0,0.00258022]
[1731852098525,0.220857,90556.0,90542.0,0.0751]
[1731852098526,0.110429,90556.0,90542.0,0.0751]
[1731852098732,0.220855,90557.0,90544.0,0.00257381]
[1731852098945,0.110433,90553.0,90544.0,0.00257381]
[1731852099154,0.110433,90553.0,90545.0,0.00257855]
[1731852099371,0.110432,90553.0,90542.0,0.0751]
[1731852099584,0.110432,90553.0,90546.0,0.00256965]
[1731852099769,0.16634016,90558.0,90546.0,0.00256965]
[1731852099770,0.0008567,90558.0,90547.0,0.10906255]
[1731852100037,0.16548346,90557.0,90547.0,0.10906255]
[1731852100260,0.16548346,90557.0,90548.0,0.00257499]
[1731852100467,0.16548346,90557.0,90549.0,0.10906255]
[1731852100679,0.0008567,90558.0,90549.0,0.10906255]
[1731852100903,0.0008567,90558.0,90550.0,0.00256965]
[1731852103307,0.220855,90557.0,90550.0,0.00256965]
[1731852103526,0.110429,90556.0,90550.0,0.00256965]
[1731852103740,0.110429,90556.0,90549.0,0.10906255]
[1731852103946,0.11043,90555.0,90549.0,0.10906255]
[1731852104199,0.11043,90555.0,90550.0,0.00256626]
[1731852104410,0.0008567,90558.0,90550.0,0.00256626]
[1731852104706,0.0008567,90558.0,90545.0,0.0459]
[1731852104707,0.220855,90557.0,90545.0,0.0459]
[1731852104931,0.0008567,90558.0,90545.0,0.0459]
[1731852105174,0.110439,90547.0,90546.0,0.00257516]
[1731852105382,0.110441,90546.0,90538.0,0.0017126]
[1731852105597,0.110441,90546.0,90538.0,0.04663698]
[1731852105814,0.110441,90546.0,90539.0,0.00256544]
[1731852106042,0.11044,90547.0,90539.0,0.00256544]
[1731852106472,0.110441,90546.0,90539.0,0.00256544]
[1731852106697,0.11044,90547.0,90539.0,0.00256544]
[1731852107643,0.11044,90547.0,90539.0,0.10256544]
[1731852107849,0.220867,90552.0,90539.0,0.10256544]
[1731852108106,0.110441,90546.0,90539.0,0.00256544]
[1731852108508,0.110441,90546.0,90539.0,0.10256544]
[1731852109576,0.109442,90545.0,90539.0,0.00256544]
[1731852110609,0.22087,90551.0,90539.0,0.00256544]
[1731852110610,0.110441,90546.0,90539.0,0.00256544]
[1731852110823,0.22087,90551.0,90540.0,0.110447]
[1731852111251,0.220855,90557.0,90541.0,0.00257239]
[1731852111483,0.110442,90546.0,90541.0,0.00257239]
[1731852111902,0.110442,90546.0,90538.0,0.1017126]
[1731852112121,0.110442,90546.0,90542.0,0.00256171]
[1731852112554,0.110442,90546.0,90538.0,0.1017126]
[1731852112771,0.0008567,90558.0,90538.0,0.0017126]
[1731852112997,0.110438,90549.0,90543.0,0.00255993]
[1731852113236,0.110436,90551.0,90543.0,0.110443]
[1731852113464,0.0008567,90558.0,90540.0,0.1]
[1731852113465,0.0008567,90558.0,90546.0,0.11044]
[1731852113692,0.110431,90554.0,90547.0,0.00220855]
[1731852113903,0.220857,90556.0,90547.0,0.00257603]
[1731852114116,0.110437,90549.0,90547.0,0.00257603]
[1731852114332,0.11043,90555.0,90542.0,0.22089]
[1731852114557,0.0008567,90558.0,90548.0,0.00257069]
[1731852114767,0.0008563,90557.0,90548.0,0.00257069]
[1731852114942,0.110433,90553.0,90549.0,0.00257247]
[1731852115276,0.110433,90553.0,90545.0,0.110442]
[1731852115475,0.11043,90555.0,90547.0,0.110439]
[1731852115906,0.0008563,90557.0,90547.0,0.110439]
[1731852115907,0.110432,90553.0,90547.0,0.11264757]
[1731852116140,0.110432,90553.0,90547.0,0.110439]
[1731852116347,0.110431,90554.0,90548.0,0.00256891]
[1731852116557,0.11043,90555.0,90549.0,0.110437]
[1731852116775,0.11043,90555.0,90549.0,0.11300074]
[1731852116989,0.0008563,90557.0,90551.0,0.110434]
[1731852117205,0.0008563,90557.0,90556.0,0.110428]
[1731852117648,0.0008563,90557.0,90556.0,0.11298462]
[1731852118101,0.0008563,90557.0,90556.0,0.11519293]
[1731852119236,0.0008563,90557.0,90556.0,0.15953652]
[1731852124118,0.0008563,90557.0,90552.0,0.0797]
[1731852124341,0.0008563,90557.0,90556.0,0.11282252]
[1731852124654,0.0008563,90557.0,90556.0,0.11503083]
[1731852124804,0.0008563,90557.0,90556.0,0.11263631]
[1731852124974,0.0008563,90557.0,90556.0,0.11503083]
[1731852127060,0.0008563,90557.0,90556.0,0.45629338]
[1731852127274,0.0008563,90557.0,90556.0,0.45408507]
[1731852127688,0.0008563,90557.0,90556.0,0.60285785]
[1731852127900,0.0008563,90557.0,90556.0,0.45408507]
[1731852128341,0.0008563,90557.0,90556.0,0.45608507]
[1731852128578,0.0008563,90557.0,90556.0,0.60271744]
[1731852128805,0.09190936,90571.0,90561.0,0.005]
[1731852129012,0.09190936,90571.0,90570.0,0.110411]
[1731852129446,0.0008564,90577.0,90576.0,0.110404]
[1731852130140,0.0008564,90577.0,90576.0,0.11276706]
[1731852131870,0.30463029,90577.0,90576.0,0.00236306]
[1731852132078,0.35232195,90577.0,90576.0,0.00236306]
[1731852132312,0.35232195,90577.0,90565.0,0.110417]
[1731852132313,0.110412,90570.0,90565.0,0.110417]
[1731852132962,0.110417,90566.0,90560.0,0.110423]
[1731852133201,0.00220834,90571.0,90557.0,0.220853]
[1731852133425,0.00220834,90571.0,90565.0,0.110417]
[1731852133667,0.110411,90571.0,90562.0,0.11042]
[1731852133872,0.00220834,90570.0,90564.0,0.110419]
[1731852134103,0.16548346,90574.0,90561.0,0.220845]
[1731852134104,0.00220834,90572.0,90561.0,0.220845]
[1731852134322,0.110411,90570.0,90561.0,0.220845]
[1731852134548,0.11041,90571.0,90562.0,0.110421]
[1731852134767,0.00220834,90570.0,90556.0,0.04390538]
[1731852134997,0.110413,90569.0,90561.0,0.110422]
[1731852135437,0.00220834,90570.0,90554.0,0.0008563]
[1731852135649,0.00220834,90573.0,90561.0,0.220845]
[1731852135868,0.110413,90569.0,90563.0,0.11042]
[1731852136099,0.04450173,90575.0,90554.0,0.0008563]
[1731852136100,0.1328564,90577.0,90568.0,0.16548346]
[1731852136313,0.0008564,90577.0,90560.0,0.0816]
[1731852136533,0.0008564,90577.0,90576.0,0.110404]
[1731852136984,0.0008564,90577.0,90576.0,0.11275432]
[1731852142733,0.0008564,90577.0,90576.0,0.11496226]
[1731852143837,0.0017126,90583.0,90576.0,0.11496226]
[1731852143838,0.09447776,90588.0,90587.0,0.110391]
[1731852144309,0.0801,90595.0,90594.0,0.110382]
[1731852144577,0.005,90592.0,90591.0,0.110386]
[1731852144789,0.005,90592.0,90578.0,0.16548346]
[1731852144790,0.005,90592.0,90588.0,0.220779]
[1731852145041,0.005,90592.0,90591.0,0.110386]
[1731852145251,0.0801,90595.0,90594.0,0.110382]
[1731852145468,0.0851,90600.0,90597.0,0.110377]
[1731852145680,0.0851,90600.0,90595.0,0.11038]
[1731852145927,0.0851,90600.0,90593.0,0.110383]
[1731852146132,0.0851,90600.0,90594.0,0.110381]
[1731852146390,0.0851,90600.0,90588.0,0.16548346]
[1731852146835,0.0851,90600.0,90597.0,0.110378]
[1731852147022,0.0851,90600.0,90588.0,0.16548346]
[1731852147264,0.0851,90600.0,90591.0,0.220772]
[1731852147489,0.0851,90600.0,90588.0,0.16548346]
[1731852147701,0.0851,90600.0,90598.0,0.110377]
[1731852148163,0.0851,90600.0,90590.0,0.220774]
[1731852148372,0.0801,90608.0,90591.0,0.00220636]
[1731852148591,0.16548346,90607.0,90592.0,0.22077]
[1731852148790,0.16548346,90607.0,90591.0,0.00220636]
[1731852148791,0.005,90602.0,90598.0,0.110377]
[1731852148996,0.005,90602.0,90589.0,0.1]
[1731852149206,0.005,90602.0,90598.0,0.110376]
[1731852149439,0.005,90602.0,90596.0,0.22076]
[1731852149690,0.005,90602.0,90597.0,0.110377]
[1731852149920,0.005,90602.0,90589.0,0.1]
[1731852149921,0.889623,90597.0,90589.0,0.1]
[1731852150154,0.889623,90597.0,90596.0,0.11038]
[1731852151051,0.8913352,90597.0,90596.0,0.11038]
[1731852151676,0.0473,90594.0,90580.0,0.220799]
[1731852151891,0.0473,90594.0,90582.0,0.16548346]
[1731852151892,0.110395,90583.0,90582.0,0.16548346]
[1731852152356,0.110395,90583.0,90582.0,0.00210278]
[1731852152547,0.190497,90582.0,90568.0,0.12143503]
[1731852152768,0.190497,90582.0,90577.0,0.110403]
[1731852152976,0.0801,90582.0,90562.0,0.0866]
[1731852153186,0.110401,90579.0,90572.0,0.110409]
[1731852153454,0.0801,90582.0,90573.0,0.1]
[1731852153658,0.0801,90582.0,90562.0,0.12609273]
[1731852153659,0.0494,90579.0,90562.0,0.04449273]
[1731852153873,0.110408,90573.0,90566.0,0.110416]
[1731852154078,0.220811,90575.0,90566.0,0.110416]
[1731852154285,0.110409,90572.0,90564.0,0.110418]
[1731852154501,0.110409,90572.0,90562.0,0.220843]
[1731852154717,0.005,90576.0,90562.0,0.220843]
[1731852154718,0.220816,90573.0,90562.0,0.220843]
[1731852154931,0.110411,90571.0,90563.0,0.22084]
[1731852155141,0.275202,90579.0,90564.0,0.1]
[1731852155377,0.110405,90576.0,90566.0,0.331249]
[1731852155591,0.110402,90578.0,90569.0,0.110412]
[1731852155833,0.02702157,90603.0,90569.0,0.110412]
[1731852155834,0.0494,90588.0,90570.0,0.11127047]
[1731852156073,0.16548346,90584.0,90571.0,0.1]
[1731852156287,0.16548346,90584.0,90579.0,0.1104]
[1731852156497,0.27587846,90584.0,90579.0,0.1104]
[1731852156739,0.110395,90584.0,90579.0,0.1104]
[1731852156937,0.0752,90589.0,90575.0,0.220811]
[1731852157156,0.0752,90589.0,90584.0,0.110394]
[1731852157390,0.0752,90589.0,90585.0,0.110393]
[1731852157833,0.185589,90589.0,90583.0,0.110395]
[1731852158056,0.185589,90589.0,90583.0,0.110394]
[1731852158322,0.16548346,90586.0,90570.0,0.110411]
[1731852158528,0.005,90580.0,90575.0,0.16548346]
[1731852158736,0.110404,90576.0,90575.0,0.16548346]
[1731852158948,0.220801,90579.0,90571.0,0.15499687]
[1731852159171,0.005,90580.0,90571.0,0.04458687]
[1731852159172,0.110405,90576.0,90571.0,0.04458687]
[1731852159379,0.005,90580.0,90571.0,0.15499687]
[1731852159610,0.005,90580.0,90571.0,0.22082]
[1731852159853,0.005,90586.0,90572.0,0.00220793]
[1731852160087,0.0494,90588.0,90572.0,0.00220793]
[1731852160303,0.0752,90589.0,90582.0,0.220793]
[1731852160530,0.185589,90589.0,90574.0,0.331219]
[1731852160752,0.0752,90589.0,90575.0,0.10906255]
[1731852161218,0.0752,90589.0,90588.0,0.110389]
[1731852161422,0.220764,90595.0,90588.0,0.110389]
[1731852161625,0.115384,90593.0,90588.0,0.110389]
[1731852161835,0.005,90593.0,90585.0,0.220784]
[1731852162048,0.110387,90590.0,90584.0,0.110394]
[1731852162257,0.110386,90591.0,90588.0,0.0008559]
[1731852162476,0.110387,90590.0,90588.0,0.0008559]
[1731852162699,0.005,90593.0,90588.0,0.0008559]
[1731852163154,0.110383,90594.0,90589.0,0.110388]
[1731852163434,0.005,90593.0,90588.0,0.0008559]
[1731852163652,0.005,90593.0,90590.0,0.00211446]
[1731852163875,0.005,90593.0,90589.0,0.110387]
[1731852164101,0.005,90593.0,90591.0,0.0021109]
[1731852164334,0.0752,90596.0,90590.0,0.00211268]
[1731852164550,0.0752,90596.0,90592.0,0.110384]
[1731852164979,0.0752,90596.0,90593.0,0.00209893]
[1731852165193,0.0752,90596.0,90594.0,0.110382]
[1731852165415,0.0752,90596.0,90593.0,0.00209893]
[1731852165632,0.0752,90596.0,90594.0,0.00209715]
[1731852165840,0.0752,90596.0,90588.0,0.0008559]
[1731852166067,0.0752,90596.0,90595.0,0.00209537]
[1731852166306,0.0752,90596.0,90593.0,0.110383]
[1731852166749,0.0752,90596.0,90594.0,0.00209715]
[1731852166986,0.0752,90596.0,90595.0,0.110381]
[1731852167258,0.8913352,90597.0,90596.0,0.11038]
[1731852167711,0.8913352,90597.0,90596.0,0.1124786]
[1731852170200,0.8913352,90597.0,90596.0,0.15732978]
[1731852173896,0.8143352,90597.0,90596.0,0.15732978]
[1731852176718,0.8143352,90597.0,90596.0,0.36639233]
[1731852177148,0.8143352,90597.0,90596.0,0.25732978]
[1731852178936,0.8143352,90597.0,90596.0,0.36639233]
[1731852179813,0.8143352,90597.0,90596.0,0.25601233]
[1731852180251,0.8143352,90597.0,90596.0,0.36639233]
[1731852180912,1.0006132,90597.0,90596.0,0.04694978]
[1731852181130,0.8143352,90597.0,90596.0,0.04694978]
[1731852181368,0.8143352,90597.0,90596.0,0.36429373]
[1731852181577,0.8143352,90597.0,90596.0,0.36632652]
[1731852184854,0.8143352,90597.0,90596.0,0.04688397]
[1731852186152,0.9247132,90597.0,90596.0,0.04773987]
[1731852186381,0.8143352,90597.0,90596.0,0.04570708]
[1731852186661,0.9297132,90597.0,90596.0,0.04570708]
[1731852186865,0.9297132,90597.0,90596.0,0.0008559]
[1731852187088,0.9347132,90597.0,90596.0,0.0008559]
[1731852188482,0.9367132,90597.0,90596.0,0.0008559]
[1731852188705,1.0616132,90597.0,90596.0,0.0008559]
[1731852188909,0.9846132,90597.0,90596.0,0.0008559]
[1731852189139,0.9826132,90597.0,90596.0,0.0008559]
[1731852189832,0.8672352,90597.0,90596.0,0.1112359]
[1731852190051,0.7423352,90597.0,90596.0,0.22234296]
[1731852190251,0.7423352,90597.0,90596.0,0.36758638]
[1731852193086,0.63241362,90596.0,90594.0,0.220763]
[1731852193317,0.63241362,90596.0,90595.0,0.110381]
[1731852197677,0.63241362,90596.0,90594.0,0.04467849]
[1731852197934,0.24378346,90595.0,90588.0,0.0008559]
[1731852198173,0.002,90592.0,90588.0,0.0008559]